bitfinex/quotes_SOLUSD_20260308
["timestamp","ask_amount","ask_price","bid_price","bid_amount"]
[1772938392594,12.13836851,82.384,82.333,0.49999999]
[1772938392977,8.25146993,82.38,82.333,0.49999999]
[1772938393290,12.13836851,82.384,82.334,0.49999999]
[1772938393597,12.13769919,82.388,82.336,0.49999999]
[1772938393773,8.25146993,82.38,82.336,0.49999999]
[1772938393974,8.25146993,82.38,82.338,0.49999999]
[1772938396673,8.25146993,82.39,82.34,0.49999999]
[1772938397187,8.25146993,82.4,82.34,0.49999999]
[1772938397397,0.28432314,82.413,82.34,0.49999999]
[1772938397579,8.25146993,82.4,82.34,0.49999999]
[1772938397784,0.28432314,82.413,82.34,0.49999999]
[1772938397785,8.25146993,82.39,82.34,0.49999999]
[1772938401185,20.3888685,82.39,82.34,0.49999999]
[1772938401387,8.25146993,82.37,82.327,0.49999999]
[1772938401602,0.28432314,82.389,82.327,0.49999999]
[1772938401800,8.25146993,82.36,82.327,0.49999999]
[1772938402686,20.39343248,82.36,82.331,0.49999999]
[1772938403406,8.25146993,82.38,82.331,0.49999999]
[1772938404589,8.25146993,82.39,82.334,0.49999999]
[1772938407904,8.25146993,82.39,82.336,0.49999999]
[1772938408294,12.13628287,82.398,82.336,0.49999999]
[1772938408494,8.25146993,82.39,82.337,0.49999999]
[1772938410112,12.13754263,82.389,82.339,0.49999999]
[1772938412095,3.30179983,82.41,82.341,0.49999999]
[1772938412296,3.30179983,82.4,82.342,0.49999999]
[1772938413020,3.30179983,82.39,82.342,0.49999999]
[1772938413219,3.30179983,82.38,82.342,0.49999999]
[1772938414096,42.76056678,82.399,82.343,12.14432313]
[1772938414296,3.30179983,82.38,82.343,12.64432312]
[1772938414498,3.30179983,82.39,82.344,0.49999999]
[1772938415919,12.13754263,82.389,82.346,0.49999999]
[1772938416418,3.30179983,82.39,82.346,0.49999999]
[1772938417521,12.13613904,82.399,82.346,0.49999999]
[1772938417702,12.13613904,82.399,82.347,0.49999999]
[1772938418011,12.13606961,82.399,82.349,0.49999999]
[1772938418219,3.30179983,82.4,82.35,0.49999999]
[1772938419912,12.13439324,82.411,82.354,0.49999999]
[1772938421134,12.13312464,82.419,82.356,0.49999999]
[1772938421927,42.46593624,82.419,82.356,0.49999999]
[1772938422102,3.30179983,82.41,82.356,0.49999999]
[1772938423313,12.13399638,82.414,82.358,0.49999999]
[1772938423617,12.13399638,82.414,82.359,0.49999999]
[1772938424406,12.13320516,82.419,82.359,0.49999999]
[1772938426610,0.28432314,82.445,82.346,3.69383402]
[1772938426611,12.13224143,82.425,82.362,0.49999999]
[1772938426814,12.13025765,82.439,82.365,0.49999999]
[1772938429414,12.13025765,82.439,82.369,3.69383402]
[1772938429611,8.24850863,82.43,82.371,0.49999999]
[1772938430525,8.24850863,82.41,82.371,0.49999999]
[1772938430909,8.24850863,82.42,82.371,0.49999999]
[1772938431823,12.13312464,82.419,82.373,0.49999999]
[1772938432539,8.24850863,82.41,82.373,0.49999999]
[1772938433827,30.3328116,82.419,82.375,0.49999999]
[1772938434030,12.13327185,82.418,82.375,0.49999999]
[1772938434819,12.13165269,82.429,82.376,0.49999999]
[1772938435028,12.13165269,82.429,82.377,0.49999999]
[1772938436627,12.13165269,82.429,82.379,0.49999999]
[1772938436937,8.24850863,82.43,82.379,0.49999999]
[1772938437242,8.24850863,82.44,82.381,0.49999999]
[1772938437536,8.24850863,82.43,82.381,0.49999999]
[1772938437715,8.24850863,82.44,82.381,0.49999999]
[1772938438837,12.1301811,82.439,82.383,0.78432313]
[1772938439042,12.1301811,82.439,82.384,0.49999999]
[1772938439345,12.12961625,82.443,82.384,0.49999999]
[1772938439941,8.24850863,82.44,82.384,0.49999999]
[1772938441340,8.24850863,82.45,82.387,0.49999999]
[1772938441532,8.34850863,82.46,82.39,0.49999999]
[1772938441729,12.12742311,82.458,82.393,0.49999999]
[1772938441928,0.1,82.46,82.392,0.28432314]
[1772938441929,0.1,82.46,82.398,0.49999999]
[1772938442241,0.1,82.46,82.401,0.49999999]
[1772938442756,0.1,82.46,82.404,0.49999999]
[1772938442922,0.1,82.46,82.409,0.28432314]
[1772938443121,0.1,82.46,82.415,0.49999999]
[1772938443433,0.1,82.46,82.418,0.49999999]
[1772938444729,7.50974254,82.476,82.421,0.48068457]
[1772938445048,0.10000001,82.469,82.421,0.48068457]
[1772938445545,0.10000001,82.469,82.423,0.48068457]
[1772938446421,8.23608016,82.46,82.423,0.48068457]
[1772938446630,0.10000001,82.459,82.423,0.48068457]
[1772938446829,0.10000001,82.459,82.405,0.28432314]
[1772938446830,0.10000001,82.449,82.412,12.13415522]
[1772938447341,0.10000001,82.448,82.408,12.13474419]
[1772938447531,0.10000001,82.448,82.408,12.61542876]
[1772938447724,0.10000001,82.448,82.34,48.57872657]
[1772938447725,0.10000001,82.439,82.403,12.1353412]
[1772938448448,0.10000001,82.439,82.404,0.48068457]
[1772938449543,0.10000001,82.439,82.406,0.48068457]
[1772938449723,12.12788222,82.455,82.406,0.48068457]
[1772938449924,0.10000001,82.454,82.406,0.48068457]
[1772938450647,0.10000001,82.459,82.406,0.48068457]
[1772938451029,0.10000001,82.459,82.411,0.48068457]
[1772938451441,0.10000001,82.459,82.413,0.48068457]
[1772938451626,0.10000001,82.469,82.413,0.48068457]
[1772938451936,0.10000001,82.469,82.416,0.48068457]
[1772938454028,12.12572415,82.47,82.419,0.48068457]
[1772938454945,0.10000001,82.469,82.419,0.48068457]
[1772938456145,0.10000001,82.469,82.421,0.48068457]
[1772938457330,0.10000001,82.459,82.421,0.48068457]
[1772938457531,0.10000001,82.459,82.42,12.13297743]
[1772938457731,0.10000001,82.459,82.42,12.613662]
[1772938458040,0.10000001,82.466,82.421,0.48068457]
[1772938458346,0.10000001,82.466,82.423,0.48068457]
[1772938459349,42.44018964,82.469,82.423,0.48068457]
[1772938459555,0.10000001,82.488,82.427,0.48068457]
[1772938460757,0.10000001,82.488,82.43,0.48068457]
[1772938461330,0.1,82.5,82.432,0.48068457]
[1772938461654,0.1,82.5,82.428,103.12029891]
[1772938461655,0.10000001,82.489,82.438,0.48068457]
[1772938462739,0.10000001,82.489,82.441,0.48068457]
[1772938464854,0.10000001,82.489,82.443,0.48068457]
[1772938467058,0.10000001,82.489,82.445,0.48068457]
[1772938469557,0.10000001,82.489,82.447,0.48068457]
[1772938472862,0.10000001,82.489,82.449,0.46407621]
[1772938473055,0.1,82.49,82.449,0.46407621]
[1772938473258,0.1,82.49,82.45,32.66407621]
[1772938473449,0.1,82.49,82.452,0.46407621]
[1772938474964,0.1,82.49,82.462,0.46407621]
[1772938475948,0.1,82.49,82.464,0.46407621]
[1772938477764,0.10000001,82.489,82.463,12.12665074]
[1772938478065,0.10000001,82.489,82.46,0.46407621]
[1772938479469,0.10000001,82.469,82.434,0.46407621]
[1772938481485,12.22576848,82.469,82.436,0.46407621]
[1772938481780,0.10000001,82.468,82.436,0.46407621]
[1772938482585,0.10000001,82.468,82.438,0.46407621]
[1772938483662,0.10000001,82.459,82.416,0.46407621]
[1772938484859,0.10000001,82.458,82.418,0.46407621]
[1772938485060,12.12723899,82.459,82.411,12.59826625]
[1772938485061,3.39254852,82.44,82.411,12.59826625]
[1772938485268,3.39254852,82.44,82.407,37.33715198]
[1772938485269,0.10000001,82.44,82.407,19.1348127]
[1772938485560,3.29254851,82.43,82.397,12.136363]
[1772938485778,0.28432314,82.449,82.393,12.13691701]
[1772938485779,3.29254851,82.42,82.393,12.13691701]
[1772938485981,3.29254851,82.44,82.394,0.5]
[1772938486173,3.29254851,82.45,82.395,0.5]
[1772938487006,12.12870986,82.449,82.398,0.5]
[1772938487584,12.12870986,82.449,82.396,42.47779018]
[1772938487585,3.29254851,82.47,82.401,0.5]
[1772938487889,3.29254851,82.46,82.401,0.5]
[1772938489070,12.12723899,82.459,82.404,0.5]
[1772938490689,3.69383402,82.484,82.403,0.28432314]
[1772938490690,30.31214,82.476,82.406,0.5]
[1772938490875,3.29254851,82.47,82.407,0.5]
[1772938491073,3.29254851,82.46,82.41,0.5]
[1772938491272,12.12576847,82.469,82.41,0.5]
[1772938492792,12.12576847,82.469,82.412,0.5]
[1772938494278,12.12576847,82.469,82.414,0.28432314]
[1772938494487,12.12576847,82.469,82.415,0.5]
[1772938495498,42.44018964,82.469,82.415,0.5]
[1772938495989,42.44018964,82.469,82.421,0.5]
[1772938496195,12.12576847,82.469,82.421,0.5]
[1772938496987,0.1,82.5,82.423,0.5]
[1772938497294,0.1,82.5,82.431,0.5]
[1772938497498,0.1,82.5,82.436,0.5]
[1772938497677,0.1,82.5,82.439,0.5]
[1772938497877,0.1,82.5,82.442,0.5]
[1772938498076,0.1,82.5,82.445,0.46407621]
[1772938498274,0.1,82.5,82.438,3.69383402]
[1772938498275,0.1,82.5,82.448,0.46407621]
[1772938498688,0.1,82.5,82.45,0.28432314]
[1772938498893,0.1,82.51,82.452,42.44893998]
[1772938499088,0.1,82.51,82.457,0.28432314]
[1772938499285,0.1,82.51,82.458,0.46407621]
[1772938499515,0.1,82.51,82.46,0.46407621]
[1772938500006,0.1,82.51,82.463,0.46407621]
[1772938500185,3.29254851,82.5,82.461,12.12694485]
[1772938500390,0.1,82.479,82.456,8.66750475]
[1772938500599,0.1,82.479,82.456,8.56750475]
[1772938501382,0.1,82.479,82.457,12.12753313]
[1772938502784,12.1216529,82.497,82.458,0.5]
[1772938503085,8.33539912,82.51,82.459,0.5]
[1772938503287,0.1,82.51,82.462,0.5]
[1772938504084,0.1,82.51,82.467,0.5]
[1772938504286,0.1,82.51,82.468,0.5]
[1772938505387,0.1,82.51,82.471,0.5]
[1772938505990,8.33539912,82.53,82.476,0.46064204]
[1772938505991,0.1,82.53,82.476,0.46064204]
[1772938506309,0.1,82.53,82.486,0.46064204]
[1772938508086,0.1,82.53,82.491,0.46064204]
[1772938510289,0.1,82.53,82.492,42.42835668]
[1772938510492,0.1,82.53,82.493,0.46064204]
[1772938511100,0.1,82.529,82.493,0.46064204]
[1772938511297,0.1,82.529,82.484,0.46064204]
[1772938511500,0.1,82.519,82.487,12.12303414]
[1772938511715,0.1,82.519,82.488,0.46064204]
[1772938511909,0.1,82.53,82.489,0.46064204]
[1772938512897,0.1,82.53,82.491,0.46064204]
[1772938515114,0.1,82.53,82.493,0.46064204]
[1772938516108,0.1,82.53,82.495,0.46064204]
[1772938516504,0.1,82.529,82.495,0.46064204]
[1772938516704,0.1,82.529,82.494,12.12209372]
[1772938517699,0.1,82.529,82.494,0.46064204]
[1772938519419,0.1,82.529,82.495,12.12194678]
[1772938521109,0.1,82.528,82.495,0.46064204]
[1772938522128,0.1,82.528,82.485,0.46064204]
[1772938522919,0.1,82.519,82.479,12.1242983]
[1772938523202,0.1,82.518,82.48,0.46064204]
[1772938526333,12.11709965,82.528,82.482,0.46064204]
[1772938526625,12.21709965,82.528,82.482,0.46064204]
[1772938529306,0.1,82.528,82.484,0.46064204]
[1772938529832,0.1,82.528,82.491,0.46064204]
[1772938533402,0.1,82.528,82.493,0.46057883]
[1772938536312,0.1,82.528,82.494,12.12209372]
[1772938536630,0.1,82.528,82.495,0.46057883]
[1772938538013,0.1,82.519,82.494,12.12209372]
[1772938538922,0.1,82.519,82.491,0.46057883]
[1772938541734,0.1,82.519,82.484,0.46057883]
[1772938541931,0.1,82.528,82.486,0.46057883]
[1772938545435,0.1,82.528,82.488,0.46057883]
[1772938547231,0.1,82.519,82.479,0.46057883]
[1772938547921,0.1,82.518,82.481,0.46057883]
[1772938549025,12.11842121,82.519,82.481,0.46057883]
[1772938549929,0.1,82.525,82.483,0.46057883]
[1772938551545,0.1,82.525,82.485,0.46057883]
[1772938554026,0.1,82.525,82.486,12.1232694]
[1772938554226,0.1,82.525,82.487,0.46057883]
[1772938555838,0.1,82.55,82.491,0.46057883]
[1772938555839,0.1,82.547,82.491,0.46057883]
[1772938556021,0.1,82.541,82.491,0.46057883]
[1772938556222,12.11424428,82.548,82.494,0.46057883]
[1772938556848,14.87181873,82.542,82.494,0.46057883]
[1772938557026,14.77181873,82.542,82.494,0.46057883]
[1772938557542,14.77181873,82.542,82.496,0.46057883]
[1772938558527,14.77181873,82.542,82.499,0.46057883]
[1772938560857,14.77181873,82.542,82.501,0.46057883]
[1772938562243,0.1,82.562,82.506,0.78050888]
[1772938562560,0.1,82.569,82.512,0.45428599]
[1772938562732,0.1,82.568,82.514,0.45428599]
[1772938563045,0.1,82.559,82.514,0.45428599]
[1772938564250,0.1,82.539,82.503,0.45428599]
[1772938564852,0.1,82.559,82.506,0.45428599]
[1772938565742,0.1,82.566,82.507,42.42064309]
[1772938566042,0.1,82.566,82.509,0.45428599]
[1772938567850,60.542851,82.587,82.508,0.28432314]
[1772938567851,0.1,82.559,82.511,0.45428599]
[1772938568937,0.1,82.569,82.512,0.45428599]
[1772938570041,0.1,82.569,82.51,103.01781601]
[1772938570042,0.1,82.568,82.514,0.45428599]
[1772938571130,0.1,82.559,82.513,12.11930241]
[1772938571331,3.28720034,82.54,82.513,12.11930241]
[1772938571555,0.1,82.539,82.513,12.11930241]
[1772938572142,0.1,82.539,82.508,12.12003684]
[1772938572336,0.1,82.539,82.509,0.45428599]
[1772938572660,0.1,82.548,82.509,0.45428599]
[1772938574759,0.1,82.548,82.502,0.45428599]
[1772938576445,12.11401712,82.549,82.502,0.45428599]
[1772938576842,0.1,82.549,82.504,0.45428599]
[1772938579454,0.1,82.539,82.506,0.45428599]
[1772938581441,0.1,82.539,82.508,0.45428599]
[1772938584178,0.1,82.519,82.486,12.1232694]
[1772938584548,0.1,82.519,82.487,0.45428599]
[1772938585057,102.96914558,82.549,82.488,0.45428599]
[1772938585058,0.1,82.539,82.488,0.45428599]
[1772938586168,0.1,82.539,82.487,0.28432314]
[1772938586169,0.1,82.539,82.491,0.45428599]
[1772938587769,0.1,82.546,82.491,0.45428599]
[1772938589369,0.1,82.546,82.493,0.45428599]
[1772938590864,0.1,82.539,82.493,0.45428599]
[1772938591064,0.1,82.529,82.493,0.45428599]
[1772938591262,0.1,82.529,82.495,0.45428599]
[1772938592657,3.38720034,82.52,82.495,0.45428599]
[1772938592964,0.1,82.519,82.494,12.12209372]
[1772938593450,0.1,82.519,82.493,0.45722967]
[1772938593451,0.1,82.518,82.491,12.1224101]
[1772938594864,0.1,82.509,82.478,0.45722967]
[1772938595671,0.1,82.509,82.48,0.45722967]
[1772938595863,0.28432314,82.539,82.48,0.45722967]
[1772938595864,0.1,82.532,82.481,0.45722967]
[1772938596065,0.28432314,82.546,82.481,0.45722967]
[1772938596066,0.1,82.529,82.481,0.45722967]
[1772938597772,0.1,82.528,82.483,0.45722967]
[1772938599174,0.1,82.528,82.484,11.86601044]
[1772938599478,0.1,82.528,82.468,0.45722967]
[1772938599479,0.1,82.509,82.468,0.45722967]
[1772938599780,0.1,82.519,82.468,0.45722967]
[1772938602286,0.1,82.519,82.471,0.45722967]
[1772938602984,0.1,82.509,82.471,0.45722967]
[1772938603381,3.28720034,82.51,82.471,0.45722967]
[1772938603382,3.28720034,82.5,82.471,0.45722967]
[1772938603569,0.1,82.489,82.455,37.91191439]
[1772938603772,30.57670521,82.529,82.449,12.12868165]
[1772938603773,0.1,82.479,82.449,12.12868165]
[1772938604067,0.1,82.459,82.421,4.67394019]
[1772938604266,12.22870986,82.449,82.422,12.13268302]
[1772938604483,12.22870986,82.449,82.421,4.67394019]
[1772938604484,3.28720034,82.43,82.421,1e-08]
[1772938604684,3.28720034,82.43,82.377,0.5]
[1772938604861,3.28720034,82.43,82.391,0.5]
[1772938605185,12.12870986,82.449,82.392,0.5]
[1772938605573,12.12870986,82.449,82.393,0.5]
[1772938606077,3.28720034,82.44,82.393,0.5]
[1772938606279,3.28720034,82.45,82.395,0.5]
[1772938606478,8.24339145,82.45,82.395,0.5]
[1772938608064,12.12870986,82.449,82.396,42.47779018]
[1772938608285,8.24339145,82.42,82.386,0.5]
[1772938608477,8.24339145,82.41,82.377,12.13925028]
[1772938608975,0.28432314,82.441,82.386,0.5]
[1772938609276,8.24339145,82.42,82.386,0.5]
[1772938610267,8.24339145,82.42,82.385,12.13813194]
[1772938610268,12.13312464,82.419,82.387,12.63783728]
[1772938610469,8.24339145,82.4,82.366,4.55415728]
[1772938610891,8.24339145,82.41,82.376,0.5]
[1772938611095,42.46593624,82.419,82.385,0.5]
[1772938611393,8.24339145,82.43,82.386,0.5]
[1772938611567,8.24339145,82.42,82.386,0.5]
[1772938611766,8.24339145,82.43,82.386,0.5]
[1772938611968,50.69851032,82.44,82.386,0.5]
[1772938612376,12.13003396,82.44,82.388,0.5]
[1772938612674,20.37342541,82.44,82.388,0.5]
[1772938612875,8.24339145,82.43,82.388,0.5]
[1772938613593,50.69851032,82.44,82.388,0.5]
[1772938613794,8.24339145,82.43,82.388,0.5]
[1772938614781,42.46078442,82.429,82.389,12.13754263]
[1772938614977,42.46078442,82.429,82.39,0.5]
[1772938615179,12.13165269,82.429,82.39,0.5]
[1772938615579,12.13165269,82.429,82.366,4.55415728]
[1772938615580,8.24339145,82.41,82.377,0.5]
[1772938615896,8.24339145,82.4,82.371,12.14010107]
[1772938616599,8.24339145,82.41,82.369,0.5]
[1772938616784,8.24339145,82.4,82.369,0.5]
[1772938617380,8.24339145,82.41,82.38,0.7]
[1772938617594,12.13459694,82.409,82.38,12.83881466]
[1772938617790,12.13459694,82.409,82.38,0.7]
[1772938617972,42.47108931,82.409,82.38,0.7]
[1772938619878,12.13459694,82.409,82.385,0.5]
[1772938620402,8.24339145,82.4,82.366,4.55415728]
[1772938620598,8.24339145,82.38,82.354,12.14262244]
[1772938620980,8.24339145,82.38,82.35,0.5]
[1772938621289,8.24339145,82.39,82.335,0.28432314]
[1772938621485,103.14407405,82.409,82.336,0.5]
[1772938621486,8.24339145,82.4,82.336,0.5]
[1772938621890,8.24339145,82.39,82.336,0.5]
[1772938622288,12.13754263,82.389,82.339,0.5]
[1772938622475,8.24339145,82.38,82.339,0.5]
[1772938622875,8.24339145,82.37,82.332,12.14586637]
[1772938623094,8.24339145,82.36,82.332,0.5]
[1772938623295,8.24339145,82.37,82.332,0.5]
[1772938623778,8.24339145,82.35,82.312,0.5]
[1772938623978,8.24339145,82.36,82.312,0.5]
[1772938624486,12.14196384,82.359,82.314,0.5]
[1772938624919,12.1387213,82.381,82.314,0.5]
[1772938625206,12.1387213,82.381,82.315,0.5]
[1772938625207,8.24339145,82.38,82.315,0.5]
[1772938625409,12.13706099,82.393,82.318,0.5]
[1772938625709,12.13606961,82.399,82.318,0.5]
[1772938626607,12.13459694,82.409,82.326,0.5]
[1772938626784,12.13459694,82.409,82.33,0.14216157]
[1772938626990,42.47108931,82.409,82.331,0.5]
[1772938627189,42.47108931,82.409,82.336,0.28432314]
[1772938627426,42.47108931,82.409,82.341,0.5]
[1772938627713,6.33676965,82.446,82.344,0.5]
[1772938627714,8.25115148,82.43,82.344,0.5]
[1772938628016,42.45254412,82.445,82.344,0.5]
[1772938628324,8.25115148,82.44,82.349,0.5]
[1772938628486,12.1301811,82.439,82.354,0.28432314]
[1772938628692,12.1301811,82.439,82.355,0.5]
[1772938628913,42.45563385,82.439,82.355,0.5]
[1772938629092,8.25115148,82.42,82.355,0.5]
[1772938631813,8.25115148,82.43,82.361,0.5]
[1772938632511,12.13032824,82.438,82.361,0.5]
[1772938633198,12.13032824,82.438,82.366,0.5]
[1772938633820,12.13032824,82.438,82.37,3.69383402]
[1772938634030,12.13032824,82.438,82.372,0.5]
[1772938636420,12.13032824,82.438,82.367,103.19666855]
[1772938636421,8.25115148,82.41,82.375,0.5]
[1772938636812,8.25115148,82.42,82.375,0.5]
[1772938638310,42.46593624,82.419,82.376,12.13945809]
[1772938638510,42.46593624,82.419,82.376,12.63945809]
[1772938638906,42.46593624,82.419,82.347,0.5]
[1772938638907,8.25115148,82.4,82.347,0.5]
[1772938639112,8.25115148,82.39,82.347,0.5]
[1772938639312,8.25115148,82.4,82.347,0.5]
[1772938641511,8.25115148,82.4,82.34,3.69383402]
[1772938641512,12.13606961,82.399,82.349,0.5]
[1772938642808,12.13606961,82.399,82.35,0.5]
[1772938643618,8.25115148,82.39,82.352,0.5]
[1772938644321,8.25115148,82.4,82.352,0.5]
[1772938644828,42.47108931,82.409,82.352,0.5]
[1772938645125,8.25115148,82.4,82.352,0.5]
[1772938645725,30.33649237,82.409,82.354,0.5]
[1772938648225,42.47108931,82.409,82.356,0.5]
[1772938649228,12.13459694,82.409,82.356,0.5]
[1772938651512,42.47108931,82.409,82.358,0.5]
[1772938651718,8.25115148,82.4,82.358,0.5]
[1772938651931,42.47108931,82.409,82.358,0.5]
[1772938653437,42.47108931,82.409,82.36,0.5]
[1772938656417,42.47108931,82.409,82.353,60.71420957]
[1772938656418,42.47108931,82.409,82.362,0.5]
[1772938658425,30.33649237,82.409,82.362,0.5]
[1772938658631,3.3004892,82.4,82.364,0.5]
[1772938660635,30.33649237,82.409,82.366,0.5]
[1772938662821,3.3004892,82.4,82.367,12.14078453]
[1772938663343,30.33649237,82.409,82.368,0.5]
[1772938664427,30.33649237,82.409,82.37,0.5]
[1772938671655,42.47108931,82.409,82.372,0.5]
[1772938674351,42.47108931,82.409,82.374,0.5]
[1772938676859,42.47108931,82.409,82.376,0.5]
[1772938677060,30.32914829,82.429,82.377,0.5]
[1772938677261,3.3004892,82.42,82.377,0.5]
[1772938678852,42.46593624,82.419,82.379,0.5]
[1772938679937,42.46593624,82.419,82.381,0.5]
[1772938681165,42.46593624,82.419,82.375,30.34901365]
[1772938681166,3.3004892,82.41,82.375,0.5]
[1772938681465,3.3004892,82.41,82.357,0.5]
[1772938682039,42.47108931,82.409,82.359,0.5]
[1772938683845,3.3004892,82.4,82.359,0.5]
[1772938684047,42.47624364,82.399,82.36,12.14181641]
[1772938684253,3.3004892,82.39,82.36,12.64181641]
[1772938684565,3.3004892,82.39,82.36,0.5]
[1772938685259,42.47624364,82.399,82.36,0.5]
[1772938685457,12.13606961,82.399,82.36,0.5]
[1772938686947,0.28432314,82.406,82.362,0.5]
[1772938687953,3.3004892,82.4,82.363,0.5]
[1772938688565,3.30096072,82.4,82.363,0.5]
[1772938689366,42.47624364,82.399,82.363,0.5]
[1772938690863,42.47624364,82.399,82.364,0.5]
[1772938692267,42.47624364,82.399,82.366,0.5]
[1772938692965,12.13606961,82.399,82.366,0.5]
[1772938693349,42.47624364,82.399,82.366,0.5]
[1772938698974,3.58528386,82.42,82.368,0.5]
[1772938699171,0.28432314,82.417,82.368,0.5]
[1772938700963,0.28432314,82.415,82.37,0.5]
[1772938701568,3.30096072,82.41,82.37,0.5]
[1772938703577,3.30096072,82.41,82.372,0.5]
[1772938705878,12.13459694,82.409,82.374,0.5]
[1772938708582,12.13459694,82.409,82.375,12.13960546]
[1772938708882,12.13459694,82.409,82.376,0.5]
[1772938709680,13.88689407,82.442,82.376,0.5]
[1772938709681,42.45820898,82.434,82.376,0.5]
[1772938709888,12.12870986,82.449,82.381,0.5]
[1772938710061,12.12870986,82.449,82.387,0.5]
[1772938710680,12.12870986,82.449,82.39,0.5]
[1772938711882,12.12870986,82.449,82.392,0.5]
[1772938713282,0.14216157,82.47,82.395,0.5]
[1772938713498,3.30096072,82.46,82.395,0.5]
[1772938716689,12.12723899,82.459,82.398,0.5]
[1772938716887,42.44533646,82.459,82.398,0.5]
[1772938718892,42.44533646,82.459,82.386,103.6]
[1772938718893,12.12723899,82.459,82.401,0.5]
[1772938720998,42.44044116,82.469,82.404,0.5]
[1772938721200,3.30096072,82.46,82.404,0.5]
[1772938721697,42.44044116,82.469,82.404,0.5]
[1772938722394,42.44044116,82.469,82.403,0.28432314]
[1772938722395,12.1242983,82.479,82.407,0.5]
[1772938722592,12.1242983,82.479,82.41,0.5]
[1772938724675,12.1242983,82.479,82.412,0.5]
[1772938724990,12.1242983,82.479,82.415,0.5]
[1772938726086,12.1242983,82.479,82.418,0.5]
[1772938728196,12.1242983,82.479,82.421,0.5]
[1772938728582,12.1242983,82.479,82.423,0.5]
[1772938729092,0.28432314,82.478,82.423,0.5]
[1772938729398,3.30096072,82.46,82.423,0.5]
[1772938729908,0.28432314,82.429,82.359,103.6]
[1772938730077,0.28432314,82.429,82.27,0.2]
[1772938730078,3.69383402,82.397,82.329,0.5]
[1772938730276,3.30096072,82.4,82.312,0.5]
[1772938730277,3.30096072,82.36,82.312,0.5]
[1772938730692,33.81575435,82.359,82.312,0.5]
[1772938731397,3.30096072,82.35,82.312,0.5]
[1772938732581,3.30096072,82.34,82.313,12.14874928]
[1772938732783,3.30096072,82.35,82.314,0.5]
[1772938732983,3.30096072,82.36,82.314,0.5]
[1772938734005,31.75801255,82.393,82.318,0.5]
[1772938734006,3.30096072,82.38,82.318,0.5]
[1772938734605,12.13901601,82.379,82.321,0.5]
[1772938735191,12.13797553,82.387,82.321,0.5]
[1772938736196,12.13797553,82.387,82.324,0.5]
[1772938738005,12.13797553,82.387,82.327,0.5]
[1772938738402,3.30096072,82.41,82.33,0.5]
[1772938739806,3.30096072,82.4,82.335,0.5]
[1772938739996,60.65401222,82.435,82.335,0.5]
[1772938739997,3.30096072,82.39,82.336,0.5]
[1772938741401,3.30096072,82.4,82.339,0.5]
[1772938742087,42.47212008,82.407,82.339,0.5]
[1772938742387,3.30096072,82.4,82.339,0.5]
[1772938743796,12.13606961,82.399,82.342,0.5]
[1772938745804,30.33722863,82.407,82.345,0.5]
[1772938746703,30.33722863,82.407,82.346,6.4]
[1772938746902,30.33722863,82.407,82.348,0.5]
[1772938747687,12.13459694,82.409,82.348,0.5]
[1772938747997,12.13459694,82.409,82.346,6.4]
[1772938747998,12.13459694,82.409,82.351,0.5]
[1772938748608,12.13459694,82.409,82.354,0.5]
[1772938748913,12.13459694,82.409,82.357,0.5]
[1772938749610,3.30021684,82.4,82.357,0.5]
[1772938749809,30.33649237,82.409,82.358,42.49738944]
[1772938750005,30.33649237,82.409,82.359,0.5]
[1772938751116,3.30021684,82.41,82.36,0.5]
[1772938751916,3.30021684,82.4,82.361,12.14166899]
[1772938753221,3.30021684,82.39,82.359,6.4]
[1772938753512,3.30021684,82.39,82.357,12.14223381]
[1772938753812,3.30021684,82.4,82.357,12.14223381]
[1772938754015,42.47624364,82.399,82.354,0.5]
[1772938756006,30.34017403,82.399,82.356,0.5]
[1772938757014,3.30021684,82.39,82.356,0.5]
[1772938757400,30.34017403,82.399,82.356,0.5]
[1772938758822,42.47624364,82.399,82.357,12.1422587]
[1772938759008,42.47624364,82.399,82.358,0.5]
[1772938760926,42.47624364,82.399,82.36,0.5]